Posting Date,Expenditure Area,Supplier Name, Amount ,Expense Type,Reason for Expense
09-Apr-20,Culture & Environment Services,Amazon Prime, 6.66 ,Transport Costs - Miscellaneous,Charge cables for tablets 
21-Apr-20,Culture & Environment Services,Amazon Prime Amzn.Co.Uk/P,-3.33 ,Transport Costs - Miscellaneous,Charge cables for tablets 
01-Apr-20,Culture & Environment Services,Amz*enreta Direct Limt,-18.75 ,Equipment / Furniture / Materials,Laminate pouches for signage COVID-19
16-Apr-20,Culture & Environment Services,Amznmktplace, 87.49 ,Computer Equipment - Purchase,1x tablet
10-Apr-20,Culture & Environment Services,Amznmktplace, 51.72 ,Equipment / Furniture / Materials,Inkjet printer cartridges for office
17-Apr-20,Culture & Environment Services,Amznmktplace, 56.50 ,Equipment / Furniture / Materials,200 Meters webbing for graves
10-Apr-20,Culture & Environment Services,Amznmktplace, 19.97 ,Stationery,Pouches for parks signage Covid- 19
14-Apr-20,Culture & Environment Services,Amznmktplace, 14.96 ,Stationery,Back rest
23-Apr-20,Culture & Environment Services,Amznmktplace Amazon.Co.Uk, 17.87 ,Computer Consumables and other Minor IT costs,5x USB chargers
23-Apr-20,Culture & Environment Services,Amznmktplace Amazon.Co.Uk, 17.56 ,Computer Consumables and other Minor IT costs,9x USB leads
24-Apr-20,Culture & Environment Services,Amznmktplace Amazon.Co.Uk, 91.66 ,Computer Equipment - Purchase,1x tablet
13-Apr-20,Culture & Environment Services,Amznmktplace Amazon.Co.Uk, 7.50 ,Equipment / Furniture / Materials,Milk 'Jiggers' for bearers room
23-Apr-20,Culture & Environment Services,Amznmktplace Amazon.Co.Uk, 27.49 ,Equipment / Furniture / Materials,Replacement keyboard and mouse
22-Apr-20,Culture & Environment Services,Amznmktplace Amazon.Co.Uk, 10.99 ,Materials and Supplies - Miscellaneous,Water Pip Tap Joint
24-Apr-20,Culture & Environment Services,B & Q 1315, 30.42 ,Equipment / Furniture / Materials,Timber - GIPPESWYK BARK PIT
28-Apr-20,Culture & Environment Services,B & Q 1315, 131.67 ,Equipment / Furniture / Materials,Paint for the CCP
23-Apr-20,Culture & Environment Services,B & Q 1315, 135.17 ,Materials and Supplies - Miscellaneous,Material for treating Park benches - CHRISTCHURCH PARK
24-Apr-20,Culture & Environment Services,B & Q 1315, 36.06 ,Materials and Supplies - Miscellaneous,Brush set/sand paper (bench treatment) - CHRISTCHURCH PARK
28-Apr-20,Culture & Environment Services,B & Q 1315, 80.05 ,Materials and Supplies - Miscellaneous,Exterior Gloss (Bench treatment) - CHRISTCHURCH PARK
28-Apr-20,Culture & Environment Services,B & Q 1315, 101.67 ,Materials and Supplies - Miscellaneous,Exterior Gloss (Bench treatment) - CHRISTCHURCH PARK
01-Apr-20,Culture & Environment Services,Booker Limited Ipswich, 207.37 ,Materials and Supplies - Miscellaneous,Packaging for food parcels
03-Apr-20,Culture & Environment Services,Booker Limited Ipswich, 23.99 ,Materials and Supplies - Miscellaneous,Disposable gloves for Park Staff
29-Apr-20,Culture & Environment Services,Booker Limited Ipswich, 111.49 ,Materials and Supplies - Miscellaneous,Items for COVID 19 food parcels
02-Apr-20,Culture & Environment Services,Bunzl, 123.46 ,Cleaning Supplies,Cleaning supplies for Whitton Depot
07-Apr-20,Culture & Environment Services,Clarkes Of Walsham, 221.53 ,Equipment / Furniture / Materials,Timber to repair gate
07-Apr-20,Culture & Environment Services,Complete Care Shop, 115.70 ,Materials and Supplies - Miscellaneous,Slide transfer sheets for HEARS Responders
22-Apr-20,Culture & Environment Services,Deben Vehicle Repairs Lim, 70.00 ,Parks Vehicle Costs,12153 Broken Glass
01-Apr-20,Culture & Environment Services,Dvla Vehicle Tax, 262.50 ,Direct Transport Costs,Vehicle Tax for LG15 BXS
07-Apr-20,Culture & Environment Services,Dvla Vehicle Tax, 267.50 ,Direct Transport Costs,Vehicle Tax for AV12 NTM
13-Apr-20,Culture & Environment Services,Dvla Vehicle Tax, 267.50 ,Direct Transport Costs,Vehicle Tax for AV12 LFW
13-Apr-20,Culture & Environment Services,Dvla Vehicle Tax, 167.50 ,Direct Transport Costs,vehicle tax for AY12 DXV
13-Apr-20,Culture & Environment Services,Dvla Vehicle Tax, 167.50 ,Direct Transport Costs,Vehicle Tax for AY12 DXW
13-Apr-20,Culture & Environment Services,Dvla Vehicle Tax, 267.50 ,Direct Transport Costs,Vehicle tax for AY15 NFZ
13-Apr-20,Culture & Environment Services,Dvla Vehicle Tax, 267.50 ,Direct Transport Costs,Vehicle Tax for LC16 DDN
13-Apr-20,Culture & Environment Services,Dvla Vehicle Tax, 167.50 ,Direct Transport Costs,vehicle tax for YK11 AOT
13-Apr-20,Culture & Environment Services,Dvla Vehicle Tax, 167.50 ,Direct Transport Costs,vehicle tax for YK60 AEB
07-Apr-20,Culture & Environment Services,Dvla Vehicle Tax, 267.50 ,Parks Vehicle Costs,Vehicle Tax for AO08 YXB
07-Apr-20,Culture & Environment Services,Dvla Vehicle Tax, 267.50 ,Parks Vehicle Costs,Vehicle tax for AP08 BKD
13-Apr-20,Culture & Environment Services,Dvla Vehicle Tax, 617.50 ,Parks Vehicle Costs,Vehicle Tax for AP07 YNH
17-Apr-20,Culture & Environment Services,Eoe Coop, 2.58 ,Materials and Supplies - Miscellaneous,Sundries for Waste Services
09-Apr-20,Culture & Environment Services,Euro Car Parts, 53.65 ,Parks Vehicle Costs,Bulbs and fuses for cemetery
24-Apr-20,Culture & Environment Services,Galleon Supplies L, 18.50 ,Materials and Supplies - Miscellaneous,2 x blue paper rolls
22-Apr-20,Culture & Environment Services,Halfords 0883, 2.50 ,Direct Transport Costs,One rear indicator bulb
07-Apr-20,Culture & Environment Services,Hg Gladwell & Sons, 14.25 ,Materials and Supplies - Miscellaneous,Feed for wildlife - PARK RANGERS
23-Apr-20,Culture & Environment Services,Kent Blaxill And C, 89.51 ,Materials and Supplies - Miscellaneous,Paint for the park
09-Apr-20,Culture & Environment Services,Leisure Repair Limited, 60.06 ,Equipment / Furniture / Materials,steam room sensor
17-Apr-20,Culture & Environment Services,Lockshopwarehouse, 67.30 ,Materials and Supplies - Miscellaneous,Abus Locks
24-Apr-20,Culture & Environment Services,Lockshopwarehouse, 4.20 ,Materials and Supplies - Miscellaneous,Abus Locks
07-Apr-20,Culture & Environment Services,Makro Self Service Ipswic, 21.26 ,Materials and Supplies - Miscellaneous,Items for COVID 19 food parcels
07-Apr-20,Culture & Environment Services,Makro Self Service Ipswic, 2.49 ,Materials and Supplies - Miscellaneous,Items for COVID 19 food parcels
22-Apr-20,Culture & Environment Services,Makro Self Service Ipswic, 11.85 ,Materials and Supplies - Miscellaneous,COVID related purchase
30-Apr-20,Culture & Environment Services,Marks&spencer Plc, 27.92 ,Clothing / Uniform & Laundry,1 packs of 3 shirts
06-Apr-20,Culture & Environment Services,Marks&spencer Plc Saca, 1.92 ,Materials and Supplies - Miscellaneous,Sundries for Waste Services
29-Apr-20,Culture & Environment Services,Outdoor Value, 166.50 ,Materials and Supplies - Miscellaneous,Pocket Hanging Wall Vertical Planter Bags
02-Apr-20,Culture & Environment Services,Pirtek Ipswich, 151.23 ,Miscellaneous Stock  - Purchases,Pressure washer hoses - LANDSCAPE TEAM
09-Apr-20,Culture & Environment Services,Polybags Ltd, 71.39 ,Materials and Supplies - Miscellaneous,COVID related purchase
21-Apr-20,Culture & Environment Services,Powertoolsgb, 104.00 ,Equipment / Furniture / Materials,Chisels for Cemetery
20-Apr-20,Culture & Environment Services,Sainsburys S/mkt, 2.10 ,Materials and Supplies - Miscellaneous,Toilet paper: pack of 9 rolls for barn
01-Apr-20,Culture & Environment Services,Sainsburys S/mkts, 10.17 ,Materials and Supplies - Miscellaneous,Sundries for Waste Services
28-Apr-20,Culture & Environment Services,Sainsburys S/mkts, 11.50 ,Materials and Supplies - Miscellaneous,Sundries for Waste Services
20-Apr-20,Culture & Environment Services,Screens-R-Us-Limited, 72.00 ,Direct Transport Costs,2 Chips and callout fee AY69 OJC
20-Apr-20,Culture & Environment Services,Screens-R-Us-Limited, 264.00 ,Direct Transport Costs,W/S damage for AV13 OPU F6646
16-Apr-20,Culture & Environment Services,Screwfix Direct, 19.97 ,Clothing / Uniform & Laundry,Bump Hats
01-Apr-20,Culture & Environment Services,Screwfix Direct, 19.98 ,Equipment / Furniture / Materials,hole cutter
09-Apr-20,Culture & Environment Services,Screwfix Direct, 133.10 ,Equipment / Furniture / Materials,toilet parts
17-Apr-20,Culture & Environment Services,Screwfix Direct, 16.65 ,Materials and Supplies - Miscellaneous,Bungees
24-Apr-20,Culture & Environment Services,Sp * Tradebuildingprod, 93.30 ,Materials and Supplies - Miscellaneous,4 x tubs wonder Anti bac wipes
24-Apr-20,Culture & Environment Services,Suffolk County Council, 18.33 ,Miscellaneous Stock  - Purchases,Death Certificate for public health
24-Apr-20,Culture & Environment Services,Suffolk County Council, 18.33 ,Miscellaneous Stock  - Purchases,Death Certificate for public health
24-Apr-20,Culture & Environment Services,Suffolk Fastener (Ipsw, 11.29 ,Equipment / Furniture / Materials,Assorted chippy screws - GIPPESWYK BARK PIT
28-Apr-20,Culture & Environment Services,Suffolk Fastener (Ipsw, 19.42 ,Equipment / Furniture / Materials,Chippy screws - Play Area Inspector
01-Apr-20,Culture & Environment Services,Tesco Store 2748, 2.50 ,Equipment / Furniture / Materials,Cleaning items for RDVC
01-Apr-20,Culture & Environment Services,Tesco Store 2748, 2.50 ,Equipment / Furniture / Materials,cleaning wipes for RDVC
01-Apr-20,Culture & Environment Services,Tesco Store 2748, 2.50 ,Equipment / Furniture / Materials,wipes for staff
01-Apr-20,Culture & Environment Services,Tesco Store 2748, 2.50 ,Equipment / Furniture / Materials,wipes for staff
10-Apr-20,Culture & Environment Services,Tesco Stores 5603, 0.92 ,Materials and Supplies - Miscellaneous,Sundries for Waste Services
24-Apr-20,Culture & Environment Services,Travelodge Gb0000,-226.22 ,Miscellaneous Functions & Events,hotel refund
24-Apr-20,Culture & Environment Services,Travelodge Gb0000,-226.22 ,Miscellaneous Functions & Events,hotel refund
24-Apr-20,Culture & Environment Services,Travelodge Gb0000,-226.22 ,Miscellaneous Functions & Events,hotel refund
24-Apr-20,Culture & Environment Services,Travelodge Gb0000,-226.22 ,Subsistence & Conference/Seminar / Event Expenses,hotel refund
21-Apr-20,Culture & Environment Services,Uniconomy Ltd (UK)," 3,297.50 ",Materials and Supplies - Miscellaneous,300x hand sanitisers
02-Apr-20,Culture & Environment Services,Virtual College Limite, 72.00 ,Training/Courses Running Costs,Food Hygiene Courses for COVID 19 Food Parcel operators
24-Apr-20,Culture & Environment Services,Wickes Building, 249.17 ,Equipment / Furniture / Materials,pressure washer
27-Apr-20,Culture & Environment Services,Wickes Building,-15.00 ,Equipment / Furniture / Materials,partial refund for pressure washer part no longer available
16-Apr-20,Culture & Environment Services,Wickes Building, 60.00 ,Miscellaneous Stock  - Purchases,Paint for containers
16-Apr-20,Culture & Environment Services,Wickes Building,-20.00 ,Miscellaneous Stock  - Purchases,Refund for no paint in stock
28-Apr-20,Culture & Environment Services,Www.Fenlandleisure.Co.Uk, 87.90 ,Equipment / Furniture / Materials,PLAY EQUIPEMENT SPARES - PLAY AREA INSPECTOR
23-Apr-20,Culture & Environment Services,Www.Fireprotectionshop, 39.58 ,Clothing / Uniform & Laundry,2 x small hoodies for Arb Team
22-Apr-20,Culture & Environment Services,Www.Firstfence.Co.Uk, 833.33 ,Miscellaneous Stock  - Purchases,FENCE FEET STILLAGE/CROWD CONTROL BARRIER STILLAGE
22-Apr-20,Culture & Environment Services,Www.Firstfence.Co.Uk," 1,208.32 ",Miscellaneous Stock  - Purchases,FENCE FEET STILLAGE/CROWD CONTROL BARRIER STILLAGE
22-Apr-20,Culture & Environment Services,Www.Firstfence.Co.Uk, 833.33 ,Miscellaneous Stock  - Purchases,Stillages/Fencing
29-Apr-20,Culture & Environment Services,Www.Fta.Co.Uk, 320.00 ,Materials and Supplies - Miscellaneous,COVID related purchase
01-Apr-20,Culture & Environment Services,Www.Graniteworkwear.Com, 115.90 ,Clothing / Uniform & Laundry,2 pairs hi-viz coveralls
21-Apr-20,Culture & Environment Services,Www.Ofcom.Org.Uk, 62.50 ,Licences & Other Fees,Ofcom - Radio Licences Crown Pools
06-Apr-20,Culture & Environment Services,Www.Ofcom.Org.Uk, 114.58 ,Telecommunication Costs - Business Phones,Renewal of Radio Licence for the Town Hall & Corn Exchange
02-Apr-20,Culture & Environment Services,Www.Towsure.Com, 41.25 ,Parks Vehicle Costs,Towing adaptors
01-Apr-20,Culture & Environment Services,Zeedee Global Limited, 2.50 ,Equipment / Furniture / Materials,wipes for staff
01-Apr-20,Culture & Environment Services,Zeez Investment Ltd 10, 4.17 ,Equipment / Furniture / Materials,wipes for staff
14-Apr-20,Development,Amznmktplace, 8.32 ,Fixtures & Fittings,sample milk bottle lids
17-Apr-20,Development,Babergh District C, 100.00 ,Non Contracted_Professional Services,Partnership application Brook Cottage
09-Apr-20,Development,Caterbox.Co.Uk, 96.50 ,Fixtures & Fittings,recycle bins
22-Apr-20,Development,Defib Pad, 103.98 ,Materials and Supplies - Miscellaneous,new defib pads
27-Apr-20,Development,Efoldi, 46.65 ,Clothing / Uniform & Laundry,No work wear boots
09-Apr-20,Development,Geodesys, 90.83 ,Capital Expenditure,9 Redwing Cl
01-Apr-20,Development,Horizon Environment Sr, 49.75 ,Premises Costs - Miscellaneous,pest control
13-Apr-20,Development,Morgan Group Ltd, 78.00 ,Reactive Repairs,Lock repairs to rear of Burtons building for IBA
09-Apr-20,Development,Nochex.*utilitysearch, 100.17 ,Capital Expenditure,9 Redwing Cl
06-Apr-20,Development,Rose Builders Ltd," 1,280.80 ",Subscriptions - Service Related,Emergency Repairs Millers View
28-Apr-20,Development,Voyage Newsagent & Off, 3.47 ,Equipment / Furniture / Materials,no milk
02-Apr-20,Development,"Www,eastsuffolk.Gov.Uk", 96.00 ,Non Contracted_Professional Services,Partnership Inspections 2 Rose Cottages
29-Apr-20,Development,Www.Banneruk.Com, 51.14 ,Stationery,Labels for Core Document Library (ILP)
10-Apr-20,Development,Www.Mailcoms.Co.Uk, 69.95 ,Postage Costs,annual update
24-Apr-20,Development,Www.Planningportal.Co., 487.00 ,Long Term Creditors (detail),Planning app fees for Kevin Beattie statue
27-Apr-20,Development,Www.Planningportal.Co., 141.00 ,Long Term Creditors (detail),Planning Portal costs - Kevin Beattie statue
27-Apr-20,Finance & Revenues,Amazon.Co.Uk, 37.72 ,Computer Equipment - Purchase,Ergo Keyboard
06-Apr-20,Finance & Revenues,Amznmktplace, 16.48 ,Computer Equipment - Purchase,USB-C to HDMI Adapter
30-Apr-20,Finance & Revenues,Amznmktplace, 10.82 ,Telecommunication Costs - Mobiles,Protective case for Smartphone
27-Apr-20,Finance & Revenues,Amznmktplace Amazon.Co.Uk, 95.84 ,Telecommunication Costs - Mobiles,Protective cases for Smartphones
27-Apr-20,Finance & Revenues,Amznmktplace Amazon.Co.Uk, 37.27 ,Telecommunication Costs - Mobiles,Protective cases for Smartphones
27-Apr-20,Finance & Revenues,Cbt Nuggets Llc, 49.40 ,Training Expenses,ICT Training
30-Apr-20,Finance & Revenues,Currys Online, 74.98 ,Computer Equipment - Purchase,Monitor & HDMI Cable 
29-Apr-20,Finance & Revenues,Dri*, 52.84 ,Equipment / Furniture / Materials,PDF Software
02-Apr-20,Finance & Revenues,Ebuyer (UK) Ltd, 308.62 ,Equipment / Furniture / Materials,20 x Laptop sleeves
22-Apr-20,Finance & Revenues,Paypal, 107.91 ,Computer Consumables and other Minor IT costs,Domain renewals
06-Apr-20,Finance & Revenues,"Probrand Ltd.,", 994.03 ,Computer Equipment - Purchase,6 x monitors for stock
06-Apr-20,Finance & Revenues,"Probrand Ltd.,", 994.03 ,Computer Equipment - Purchase,6 x monitors for stock
27-Apr-20,Finance & Revenues,"Probrand Ltd.,", 694.80 ,Computer Equipment - Purchase,10 X Agile Docks
27-Apr-20,Finance & Revenues,"Probrand Ltd.,", 345.60 ,Computer Equipment - Purchase,30 Keyboards \ 30 x Mice USB
08-Apr-20,Finance & Revenues,Service Fees - Fraedom Pty Ltd, 383.15 ,Computer Software - Maintenance,Fraedom Card Usage Fees from 1/3/20 to 31/3/20
13-Apr-20,Housing & Community Services,Amazon Prime, 7.99 ,Equipment / Furniture / Materials,Amazon Prime
01-Apr-20,Housing & Community Services,Amazon.Co.Uk, 12.54 ,Telecommunication Costs - Mobiles,Handset for Skype
06-Apr-20,Housing & Community Services,Amznmktplace, 190.83 ,Miscellaneous Expenses,replacement hoover Broke Hall House
13-Apr-20,Housing & Community Services,Amznmktplace, 276.98 ,Telecommunication Costs - Mobiles,"Phone/tablet cases, screen protectors & handsets."
22-Apr-20,Housing & Community Services,Amznmktplace Amazon.Co.Uk, 23.91 ,Publications - Purchase,Book - Contract Practice for Surveyors.
10-Apr-20,Housing & Community Services,Argos Ltd, 60.00 ,Equipment / Furniture / Materials,saucepans for homeless households
02-Apr-20,Housing & Community Services,Argos Ltd, 616.92 ,Services for Clients,Furnitue
20-Apr-20,Housing & Community Services,Argos Ltd, 295.00 ,Services for Clients,furnitueOFR
20-Apr-20,Housing & Community Services,Argos Ltd, 401.94 ,Services for Clients,furniture
20-Apr-20,Housing & Community Services,Argos Ltd, 546.95 ,Services for Clients,Furniture
21-Apr-20,Housing & Community Services,Argos Ltd, 509.98 ,Services for Clients,furniture
28-Apr-20,Housing & Community Services,Argos Ltd, 33.32 ,Services for Clients,furniture 
28-Apr-20,Housing & Community Services,Argos Ltd, 79.00 ,Services for Clients,furniture
28-Apr-20,Housing & Community Services,Argos Ltd, 109.96 ,Services for Clients,furniture
30-Apr-20,Housing & Community Services,Asda George Com Leeds, 668.82 ,Specific Campaigns / Projects expenditure,Homeless family pack items
07-Apr-20,Housing & Community Services,Autodesk Purchase, 370.00 ,Computer Software - Purchase,Computer software purchase
06-Apr-20,Housing & Community Services,Booker Limited Ipswich, 9.95 ,Materials and Supplies - Miscellaneous,5x spray bottles to put disinfectant into
06-Apr-20,Housing & Community Services,Booker Limited Ipswich, 0.95 ,Materials and Supplies - Miscellaneous,Milk
15-Apr-20,Housing & Community Services,Booker Limited Ipswich, 0.95 ,Materials and Supplies - Miscellaneous,Milk
22-Apr-20,Housing & Community Services,Booker Limited Ipswich, 2.94 ,Materials and Supplies - Miscellaneous,Sugar/Milk
27-Apr-20,Housing & Community Services,Booker Limited Ipswich, 19.94 ,Materials and Supplies - Miscellaneous,Milk/Coffee
23-Apr-20,Housing & Community Services,Cartridge Save, 90.60 ,Stationery,Toner cartridges
10-Apr-20,Housing & Community Services,Certsure Llp, 571.20 ,Equipment / Furniture / Materials,Annual renewal  certificates.
14-Apr-20,Housing & Community Services,Cpw Locksmiths And Securi, 120.00 ,HRA Special Repairs & Maintenance,locks for scheme
17-Apr-20,Housing & Community Services,Currys Online, 608.91 ,Services for Clients,Fridges OFR
23-Apr-20,Housing & Community Services,Currys Online, 164.98 ,Services for Clients,Fridge
28-Apr-20,Housing & Community Services,Currys Online, 143.74 ,Services for Clients,furniture for homeless household
28-Apr-20,Housing & Community Services,Currys Online, 100.00 ,Specific Campaigns / Projects expenditure,Furniture for homeless person
30-Apr-20,Housing & Community Services,Currys Online, 178.00 ,Specific Campaigns / Projects expenditure,Homeless family pack items
29-Apr-20,Housing & Community Services,Gen Register Office, 14.00 ,Specific Campaigns / Projects expenditure,birth certificate for homeless person
08-Apr-20,Housing & Community Services,Hughes Tv And Audio Ltd, 155.00 ,Miscellaneous Expenses,washing machine c/o JB Statford Court
20-Apr-20,Housing & Community Services,Ipswich Borough Co, 25.00 ,Miscellaneous Expenses,parking ticket payment 
03-Apr-20,Housing & Community Services,Ipswich Furniture Proj," 1,133.92 ",Premises Costs - Miscellaneous,furniture for isolation property
10-Apr-20,Housing & Community Services,J2 Efax Plus Service, 11.00 ,Miscellaneous Expenses,fee for use of secure fax system (used for food parcels)
09-Apr-20,Housing & Community Services,Sainsburys S/mkt, 70.00 ,Materials and Supplies - Miscellaneous,Food parcels
16-Apr-20,Housing & Community Services,Sainsburys S/mkt, 48.00 ,Materials and Supplies - Miscellaneous,Food parcels
17-Apr-20,Housing & Community Services,Sainsburys S/mkt, 112.00 ,Materials and Supplies - Miscellaneous,Food parcels
21-Apr-20,Housing & Community Services,Sainsburys S/mkt, 7.50 ,Materials and Supplies - Miscellaneous,30 tins of Baked Beans for Fulfilment Centre 
29-Apr-20,Housing & Community Services,Screwfix Direct, 6.98 ,Materials and Supplies - Miscellaneous,3761520 2x 28mm Compression caps
23-Apr-20,Housing & Community Services,Storagemart UK A-92e66e23, 94.12 ,Services for Clients,storage for homeless family
29-Apr-20,Housing & Community Services,Tesco Pfs 3724, 15.92 ,Equipment / Furniture / Materials,Unleaded fuel for small petrol plant items
03-Apr-20,Housing & Community Services,Tesco Store 2748, 32.00 ,Specific Campaigns / Projects expenditure,Purchase phones for clients going into temp accommodation
03-Apr-20,Housing & Community Services,Tesco Store 2748, 32.00 ,Specific Campaigns / Projects expenditure,Purchase phones for clients going into temp accommodation
03-Apr-20,Housing & Community Services,Tesco Store 2748, 32.00 ,Specific Campaigns / Projects expenditure,Purchase phones for clients going into temp accommodation
03-Apr-20,Housing & Community Services,The Range, 15.25 ,Premises Costs - Miscellaneous,Items for isolation house
21-Apr-20,Housing & Community Services,Wf* Wayfair 3080053634, 202.95 ,Services for Clients,Furniture OFR Gardener
29-Apr-20,Housing & Community Services,Wickes Building, 7.53 ,Materials and Supplies - Miscellaneous, 3761520 28mm compression caps
30-Apr-20,Housing & Community Services,Wickes Building, 50.00 ,Materials and Supplies - Miscellaneous,3762246 Shower Mixer
10-Apr-20,Housing & Community Services,Www.Banneruk.Com, 111.63 ,Stationery,Stationery
20-Apr-20,Housing & Community Services,Www.Clothes2order.Com, 483.80 ,Clothing / Uniform & Laundry,Uniform for new starters
17-Apr-20,Housing & Community Services,Www.Eliteindustrial.Co, 112.93 ,Clothing / Uniform & Laundry,Uniform for new starters
17-Apr-20,Housing & Community Services,Www.Millets.Co.Uk, 159.82 ,Clothing / Uniform & Laundry,Boots for new starters
21-Apr-20,Housing & Community Services,Www.Pcwb.Com, 129.98 ,Services for Clients,FurnitureOFR
27-Apr-20,People & Governance,Amazon.Co.Uk, 24.09 ,Computer Consumables and other Minor IT costs,Ink Cartridges for Sheltered Housing Scheme
27-Apr-20,People & Governance,Amazon.Co.Uk, 42.25 ,Miscellaneous Stock  - Purchases,Binding Combs and Velobinds for print room use
09-Apr-20,People & Governance,Amznmktplace, 205.40 ,Computer Consumables and other Minor IT costs,Toner Cartridges for the Car Parks Printer
15-Apr-20,People & Governance,Amznmktplace, 248.98 ,Computer Consumables and other Minor IT costs,"Toners for the Car Park Printer, and Ink for Mansion"
15-Apr-20,People & Governance,Amznmktplace, 34.54 ,Equipment / Furniture / Materials,"Toners for the Car Park Printer, and Ink for Mansion"
13-Apr-20,People & Governance,Amznmktplace Amazon.Co.Uk, 14.92 ,Miscellaneous Stock  - Purchases,Magnetic Sheets for a private chargeable job
28-Apr-20,People & Governance,Amznmktplace Amazon.Co.Uk, 7.24 ,Miscellaneous Stock  - Purchases,Binding Combs for the Print room use
06-Apr-20,People & Governance,Google Ads7268098578, 78.45 ,Advertising/Publicity,Remaining Classes & Swim offer campaign - ended 17 March
15-Apr-20,People & Governance,Government Events, 991.95 ,Training Expenses,Public Sector Comms Conference 2020 - postponed to Sept
17-Apr-20,People & Governance,Www.Paper.Co.Uk, 194.10 ,Miscellaneous Stock  - Purchases,Paper for the Print room
15-Apr-20,People & Governance,Zoom.Gbp, 23.98 ,Computer Consumables and other Minor IT costs,ZOOM Licences for online Council Meetings
